Cogmind - Beta 13 @@@ ROGUE MODE // 2024.03.26 @ 22:47:06 Player: surprise Result: Destroyed by Y-45 Defender with Heavy Assault Rifle Performance ------------- Evolutions (1) 500 Regions Visited (2) 400 Robots Destroyed (35) 175 Value Destroyed (673) 673 Prototype IDs (2) 40 Alien Tech Used (0) 0 Bonus (39) 39 TOTAL SCORE: 1827 Bonus ------- High Alert Combat Kills 39 Cogmind --------- Core Integrity 0/400 Matter 300/300 Energy 100/100 System Corruption 0% Temperature Cool (9) Movement Core (50) Location -9/Materials Parts ------- > --- POWER (1) -------- (None) > --- PROPULSION (2) --- (None) > --- UTILITY (3) ------ Visual Processing Unit > --- WEAPON (3) ------- (None) > --- INVENTORY (5) ---- Datajack Peak State ------------ > --- POWER ------------ Light Nuclear Core > --- PROPULSION ------- Aluminum Leg Aluminum Leg > --- UTILITY ---------- High-capacity Matter Pod Visual Processing Unit > --- WEAPON ----------- Particle Gun Light Assault Rifle > --- INVENTORY -------- Aluminum Leg Light Assault Rifle Grenade Launcher Datajack [Rating: 11] Favorites ----------- Power Light Ion Engine Engine Light Ion Engine Power Core Light Nuclear Core Propulsion Aluminum Leg Leg Aluminum Leg Wheel Wheel Utility High-capacity Matter Pod Device Heat Sink Storage High-capacity Matter Pod Processor Visual Processing Unit Weapon Light Assault Rifle Energy Gun Small Laser Energy Cannon Beam Cannon Ballistic Gun Light Assault Rifle Launcher Grenade Launcher Build | -11 -10 -9 ------- Run | Yrd Mat Mat Slots Evolved 2 | . . 2 Power . | . . . Propulsion . | . . . Utility 1 | . . 1 Weapon 1 | . . 1 Parts Attached 30 | 6 22 2 Power 5 | 1 3 1 Engine 3 | 1 1 1 Core 2 | . 2 . Reactor . | . . . Propulsion 7 | 2 5 . Treads . | . . . Leg 5 | . 5 . Wheel 2 | 2 . . Hover . | . . . Flight . | . . . Utility 4 | 1 3 . Device 1 | 1 . . Storage 2 | . 2 . Processor 1 | . 1 . Hackware . | . . . Protection . | . . . Artifact . | . . . Weapon 14 | 2 11 1 Energy Gun 2 | . 2 . Energy Cannon 1 | . 1 . Ballistic Gun 8 | 2 5 1 Ballistic Cannon . | . . . Launcher 3 | . 3 . Special Weapon . | . . . Impact Weapon . | . . . Slashing Weapon . | . . . Piercing Weapon . | . . . Special Melee Weapon . | . . . Unidentified Prototypes . | . . . Parts Lost 13 | . 6 7 Power 3 | . 2 1 Propulsion 5 | . 3 2 Utility 1 | . . 1 Weapon 4 | . 1 3 Highest Loss Streak 6 | . 2 6 To Critical Strikes . | . . . Average Slot Usage (%) 84 | . 91 68 Engine 8 | . 8 9 Core 2 | . 4 . Leg 12 | . 10 17 Wheel 10 | . 15 . Device 4 | . 6 . Storage 12 | . 13 10 Processor 8 | . 7 11 Energy Gun 3 | . 1 9 Ballistic Gun 17 | . 19 11 Launcher 1 | . 2 . Naked Turns . | . . . Heaviest Build 13 | 6 13 11 Greatest Support 20 | 20 20 20 Greatest Overweight (x) 2 | . 1 2 Average Overweight (x) . | . . . Largest Inventory Capacity 5 | 5 5 5 Average Capacity 5 | 5 5 5 Most Carried 5 | 3 5 3 Average Carried 1 | . 2 1 Final Capacity 5 | 5 5 5 Final Carried 1 | . 1 1 Class Distribution -------------------- 58% | Mutant 37% | Scavenger-Mutant 3% | Scavenger-Skirmisher Dominant Class ---------------- Mutant | -10/Materials Scavenger-Mutant | -9/Materials Resources | -11 -10 -9 ----------- Run | Yrd Mat Mat Matter Collected 782 | 262 393 127 Remotely . | . . . Salvage Created 622 | 33 451 138 Parts 62 | 3 43 16 Haulers Intercepted . | . . . Recyclers Shooed 4 | . 4 . Parts Field Recycled . | . . . Retrieved Matter . | . . . Parts Self-Destructed . | . . . Prevented . | . . . Kills | -11 -10 -9 ------- Run | Yrd Mat Mat Combat Hostiles Destroyed 27 | 1 16 10 Guns 17 | 1 6 10 AOE 10 | . 10 . Classes Destroyed 7 | 1 6 . Worker 2 | . 2 . Builder 2 | . 2 . Recycler 1 | . 1 . Operator 1 | . 1 . Watcher 2 | . 2 . Swarmer 16 | . 6 10 Grunt 11 | 1 10 . Best Kill Streak 6 | 1 6 4 Combat Bots Only 4 | 1 4 4 Max Kills in Single Turn 3 | 1 3 1 Gunslinging . | . . . Exploded 2 | . 2 . Melee . | . . . Uniques/NPCs Destroyed . | . . . Combat | -11 -10 -9 -------- Run | Yrd Mat Mat Hostile Shots Fired 163 | 1 68 94 Missed 43 | . 21 22 Damage Taken 1510 | 11 719 780 Core 530 | 11 117 402 Absorbed by Shields . | . . . Core Remaining (%) 71 | 95 48 . Volleys Fired 88 | 1 62 25 Largest 3 | 2 2 3 Hottest 80 | 40 65 80 Shots Fired 133 | 2 84 47 Gun 115 | 2 66 47 Cannon 2 | . 2 . Launcher 16 | . 16 . Special . | . . . Kinetic 92 | 2 64 26 Thermal 25 | . 4 21 Explosive 16 | . 16 . Electromagnetic . | . . . Robot Hit Streak 9 | 2 9 4 Robot Miss Streak 4 | . 3 4 Penetration Max . | . . . Secondary Targets 5 | . . 5 Max Gunslinging Chain 1 | . . 1 Shots Hit Robots 75 | 2 51 22 Core Hits 59 | 2 47 10 Critical Kills . | . . . Critical Parts Destroyed . | . . . Critical Strikes . | . . . Melee Attacks . | . . . Impact . | . . . Slashing . | . . . Piercing . | . . . Sneak Attacks . | . . . Combat Hostiles . | . . . Follow-up Attacks . | . . . Damage Inflicted 1731 | 16 1477 238 Guns 613 | 16 359 238 Cannons . | . . . Explosions 1115 | . 1115 . Melee . | . . . Ramming 3 | . 3 . Kinetic 451 | 16 341 94 Thermal 483 | . 339 144 Explosive 794 | . 794 . Electromagnetic . | . . . Impact . | . . . Slashing . | . . . Piercing . | . . . Highest Corruption . | . . . Average Corruption . | . . . Corruption Purged . | . . . Corruption Blocked . | . . . Overload Shots . | . . . Overflow Damage 220 | . 220 . Projectiles . | . . . Explosions 220 | . 220 . Melee . | . . . Knockbacks . | . . . Impact . | . . . Kinetic . | . . . Secondary . | . . . Self-Inflicted Damage 249 | . 230 19 Shots 10 | . 9 1 Rammed 1 | . 1 . Targets Rammed 1 | . 1 . Kicked . | . . . Crushed . | . . . Highest Temperature 71 | 6 71 34 Average Temperature 19 | 6 27 13 Received Heat Transfer 345 | 6 204 135 Siege Activations . | . . . Robots Corrupted . | . . . Combat Hostiles . | . . . Parts Fried . | . . . Impact Corruptions . | . . . Robots Melted . | . . . Combat Hostiles . | . . . Parts Melted 1 | . 1 . Heat Transferred 662 | . 337 325 Parts Sabotaged . | . . . Parts Stolen . | . . . Parts Stripped . | . . . Power Chain Reactions . | . . . Alert | -11 -10 -9 ------- Run | Yrd Mat Mat Peak Influence 497 | 20 497 432 Initial 190 | . 13 190 Average 284 | 4 307 292 Maximum Alert Level 2 | . 2 2 Low Security (%) 34 | 100 30 29 Level 1 31 | . 23 59 Level 2 33 | . 46 11 Level 3 . | . . . Level 4 . | . . . Level 5 . | . . . High Security . | . . . Max Security . | . . . Squads Dispatched 5 | . 4 1 Investigation 2 | . 2 . Extermination . | . . . Reinforcement 3 | . 2 1 Assault . | . . . Garrison . | . . . Intercept . | . . . Searches Triggered . | . . . Construction Impeded . | . . . Haulers Reinforced . | . . . Active Scanning Responses . | . . . Cargo Convoy Interrupts . | . . . Stealth | -11 -10 -9 --------- Run | Yrd Mat Mat Distress Signals 2 | . . 2 Communications Jammed . | . . . Distress Signals . | . . . Times Spotted 41 | 1 27 13 Peak Tracking Total 5 | 1 5 5 Tactical Retreats 3 | . 3 . Traps | -11 -10 -9 ------- Run | Yrd Mat Mat Traps Triggered 2 | . 2 . Indirectly . | . . . Trap Hack Attempts . | . . . Triggered . | . . . Disarmed . | . . . Reprogrammed . | . . . Reused . | . . . Traps Extracted . | . . . Installed . | . . . Triggered . | . . . Machines | -11 -10 -9 ---------- Run | Yrd Mat Mat Machines Disabled 6 | . 5 1 Max in Single Turn 2 | . 2 1 Machines Repaired . | . . . Machines Dismantled . | . . . Machines Sabotaged . | . . . Overloaded Fab Kills . | . . . Hacking | -11 -10 -9 --------- Run | Yrd Mat Mat Machines Accessed 5 | . 4 1 Terminals 3 | . 3 . Fabricators . | . . . Repair Stations . | . . . Recycling Units 1 | . 1 . Scanalyzers 1 | . . 1 Garrison Access . | . . . Total Hacks 19 | . 16 3 Successful 12 | . 10 2 Failed 7 | . 6 1 Catastrophic . | . . . Database Lockouts . | . . . Manual . | . . . Terminals 13 | . 13 . Fabricators . | . . . Repair Stations . | . . . Recycling Units 3 | . 3 . Scanalyzers 3 | . . 3 Garrison Access . | . . . Terminal Hacks 8 | . 8 . Record 4 | . 4 . Prototype ID Bank 1 | . 1 . Emergency Access Points 1 | . 1 . Alert Level 1 | . 1 . Zone Layout 1 | . 1 . Fabricator Hacks . | . . . Repair Station Hacks . | . . . Recycling Unit Hacks 2 | . 2 . Recycle Component 2 | . 2 . Scanalyzer 2 | . . 2 Insert Component 1 | . . 1 Analyze 1 | . . 1 Garrison Access Hacks . | . . . Unauthorized Hacks . | . . . Terminals . | . . . Fabricators . | . . . Repair Stations . | . . . Recycling Units . | . . . Scanalyzers . | . . . Garrison Access . | . . . Data Cores Recovered . | . . . Used . | . . . Hacking Detections 3 | . 3 . Full Trace Events 2 | . 2 . Feedback Events . | . . . Feedback Blocked . | . . . Robot Schematics Acquired . | . . . Robots Built . | . . . Authchips . | . . . Time . | . . . Total Robot Build Rating . | . . . Part Schematics Acquired 1 | . . 1 Parts Built . | . . . Authchips . | . . . Time . | . . . Total Part Build Rating . | . . . Parts Repaired . | . . . Time . | . . . Parts Recycled 2 | . 2 . Recycled Matter . | . . . Retrieved Matter . | . . . Retrieved Components . | . . . Parts Scanalyzed 1 | . . 1 Part Schematics Acquired 1 | . . 1 Parts Damaged . | . . . Bothacking | -11 -10 -9 ------------ Run | Yrd Mat Mat Used RIF Installer . | . . . Robots Hacked . | . . . Non-combat . | . . . Combat . | . . . Robot Hacks Applied . | . . . Relay Couplers Released . | . . . Fabnet Peak Effective % . | . . . Robots Rewired . | . . . Allies Hacked . | . . . Hacks Repelled . | . . . Allies | -11 -10 -9 -------- Run | Yrd Mat Mat Total Allies . | . . . Largest Group . | . . . Highest-Rated Group . | . . . Highest-Rated Ally . | . . . Total Orders . | . . . Ally Attacks . | . . . Total Damage . | . . . Kills . | . . . Allies Corrupted . | . . . Allies Melted . | . . . Intel | -11 -10 -9 ------- Run | Yrd Mat Mat Robot Analysis Total . | . . . Derelict Logs Recovered . | . . . Drone Launches . | . . . Drone Recoveries . | . . . Exploration | -11 -10 -9 ------------- Run | Yrd Mat Mat Turns Passed 1018 | 64 673 281 Spaces Moved 692 | 69 481 142 Core 31 | 22 . 9 Treads . | . . . Legs 311 | . 178 133 Wheels 350 | 47 303 . Hover . | . . . Flight . | . . . Fastest Speed 50 | 50 80 100 Average Speed 97 | 70 95 119 Slowest Speed 190 | 80 190 150 Overloaded Moves . | . . . Propulsion Burnouts . | . . . Robots Hopped . | . . . Cave-ins Triggered . | . . . Exploration Rate (%) 34 | 6 74 22 Regions Visited 2 Branch Regions . Pre-discovered Areas . | . . . Known Exits Taken . | . . . Unknown Exits Taken 2 | 1 1 . Scrap Searched . | . . . Spaces Dug . | . . . Terrain Destroyed 85 | . 85 . Melee . | . . . Projectile . | . . . AOE 85 | . 85 . Terrain Rammed . | . . . Walls Destroyed . | . . . Machines Disabled . | . . . Actions | -11 -10 -9 --------- Run | Yrd Mat Mat Total 923 | 83 627 213 Wait 77 | . 36 41 Move 690 | 68 480 142 Hop . | . . . Pick Up 25 | 7 16 2 Fast Attach 2 | . 2 . Attach 23 | 6 15 2 Detach 5 | . 5 . Swap 5 | . 5 . Drop 7 | 1 5 1 Fire 88 | 1 62 25 Melee . | . . . Ram 1 | . 1 . Kick . | . . . Crush . | . . . Escape Stasis . | . . . Rewire . | . . . Trap . | . . . Miscellaneous . | . . . Route ------- -11/Scrapyard -10/Materials (discovered 5 exits: *Mat x3 / [*Min x2]) -9/Materials History --------- Turn | Location | Event 2 | -11/Scrapyard | Met Revision 17 49 | -11/Scrapyard | Discovered new exit (range 8) 65 | -11/Scrapyard | Entered Materials 65 | -10/Materials | Discovered new exit (range 7) 188 | -10/Materials | Discovered new exit (range 15) 312 | -10/Materials | Build established: Mutant 384 | -10/Materials | Discovered new exit (range 18) 521 | -10/Materials | Discovered new exit (range 18) 588 | -10/Materials | Discovered new exit (range 19) 682 | -10/Materials | Core integrity fell below 50% 738 | -10/Materials | Entered another Materials area 738 | -9/Materials | Evolved 2 slots: Utility x1, Weapon x1 999 | -9/Materials | Core integrity fell below 50% 1014 | -9/Materials | Core integrity fell below 20% 1019 | -9/Materials | Destroyed by Y-45 Defender with Heavy Assault Rifle Last Messages --------------- S-10 Pest destroyed. U-05 Engineer lays Concrete. Sml. Laser destroyed. R-06 Scavenger collects Lgt. Assault Rifle. R-06 Scavenger collects Lgt. Ion Engine. Acquired 15 matter. Aluminum Leg destroyed. R-06 Scavenger collects Lgt. Ion Engine. Acquired 12 matter. R-06 Scavenger collects Lgt. Ion Engine. Acquired 22 matter. Lgt. Ion Engine destroyed. R-06 Scavenger collects Lgt. Ion Engine. R-06 Scavenger collects Flight Unit. K-01 Serf collects debris. K-01 Serf destroyed. R-06 Scavenger collects Wheel. Lgt. Assault Rifle destroyed. Hcp. Matter Pod destroyed. Critical hit (Burn: +37). Map ----- +----------------------------------------------------+ | ??? #???????????????? | | ??????############## #???????????????? | | ???????????????????#^ || #??##???????????? | | ??????????????????## |^ #? #???????????? | | ??????????????????#T !! # ????????????? | | ??????????????????## !! # #????????????? | | ???????????????????# #????????????? | | ???????????????????# # #?????????????? | | ???????????????????### #?#?????????????? | | ?????????????????????# og #???????????????? | | ?????????????????????# #???????????????? | | ?????????????????????# #???????????????? | | ?????????????????????# ######??????????? | | ?????????????????????# #??????????? | | ?????????????????????# #### #??????????? | | ?????????????????????# ###???????????????? | | ?????????????????????# % #?????????????????? | | ???????#######+####### #?????????????????? | | ????? ! #?????????????????? | | ????? #?????????????????? | | ????? "#?????????????????? | | ??????# ######## "#?????????????????? | | ??????# ??????????# "#?????????????????? | | ????????????????????# T#?????????????????? | | ????????????????????# "#?????????????????? | | ????????????????????# @ "#?????????????????? | | ????????????????????# "#?????????????????? | | ????????????????? ! #?????????????????? | | ?????????????? Y ????????????????? | | ?????????????+####+####### ###???????????????? | | ?????????????????????????? #?????????????????? | | ?????????????????????????? #?????????????????? | | ?????????????????????????? ?????????????????? | | ?????????????????????????? ????????????????? | | ?????????????????????????? ????????????????? | | ?????????????????????????? ##???????????????? | | ??????????????????????????####????????????????? | | ??????????????????????????????????????????????? | | ??????????????????????????????????????????????? | | ??????????????????????????????????????????????? | | ??????????????????????????????????????????????? | | ??????????????????????????????????????????????? | | ??????????????????????????????????????????????? | | | | | | | | | | | | | | | +----------------------------------------------------+ Best States ------------- Heat Dissipation 35 Energy Generation 14 Energy Capacity 250 Matter Stores 393 Matter Capacity 500 Sight Range 18 Terrain Scan Density 10 Evasion (%) 55 Item Schematics ----------------- Datajack | -9/Materials | Scanalyzed Robot Schematics ------------------ None Fabricated ------------ Nothing Alien Tech Used ----------------- None Achievements -------------- None Challenges ------------ None Game ------ Seed ServoRiotMembrane Manual? 0 Play Time 00:26:51 Cumulative 1.8 hours Start 2024.03.26 @ 22:22:59 End 2024.03.26 @ 22:47:06 Sessions 1 Manual Loads 0 Difficulty Rogue Special Mode None Game No. 11 Rogue 11 Adventurer 0 Explorer 0 Win Type - Total 0 Types 0/0/0/0/0/0/0/0/0 Lore% 8 Gallery% 5 Achievement% 8 Wizard Run 0 Options --------- Layout 1 ASCII 0 Keyboard 0 Movement Mouse Keybinds 0 Fullscreen 2 Font 32/SmallcapsGlow Map View 50x35 Zoom Use 0% Tactical HUD 0 Map Filters NONE Filters NONE Steam 1 RUN: 5c3d3f2e-351b-42ff-8ab4-63a71b4789b7